fUSD/lending_fUSD_20251023
["ID","MTS","AMOUNT","RATE_DAILY","PERIOD"]
[392127843,1761188669965,-235.34959081,0.0002299,2]
[392127844,1761188672405,-271.49874107,0.0002299,2]
[392127845,1761188674316,-179.49554518,0.0002299,2]
[392127846,1761188677049,-338.03571405,0.0002299,2]
[392127847,1761188679718,-187.83020545,0.0002299,2]
[392127848,1761188682251,-332.56615833,0.0002299,2]
[392127849,1761188684992,-170.55962723,0.0002299,2]
[392127850,1761188686767,-178.54610148,0.0002299,2]
[392127851,1761188688444,-176.94553899,0.0002299,2]
[392127852,1761188690772,-178.17581987,0.0002299,2]
[392127853,1761188692884,-43.87991398,0.0002299,2]
[392127854,1761188692906,-116.45527552,0.00023206,2]
[392127855,1761188709853,-77.00966594,0.00023206,2]
[392127856,1761188709879,-165.53639057,0.00024359,2]
[392127857,1761188754204,-85.40407779,0.00024359,2]
[392127858,1761188754225,-151.93086822,0.00025426,2]
[392127859,1761188754245,-151.27884758,0.00025512,2]
[392127860,1761188754266,-486.87491394,0.00025526,2]
[392127865,1761188934844,-279.24059853,0.00018198,2]
[392127866,1761188936615,-157.74185746,0.00018198,2]
[392127867,1761188939179,-306.56461659,0.00018198,2]
[392127868,1761188942769,-259.41936587,0.00018198,2]
[392127869,1761188944416,-415.9461806,0.00018198,2]
[392127870,1761188945085,-716.62738095,0.00018198,2]
[392127871,1761188945106,-262.63084858,0.00019156,2]
[392127872,1761188948690,-287.93829649,0.00019156,2]
[392127873,1761188950170,-1584.97085493,0.00019156,2]
[392127874,1761188950193,-523.08991118,0.00020018,2]
[392127875,1761188950217,-322.13466981,0.00020018,2]
[392127876,1761188950239,-291.43686308,0.00020018,2]
[392127877,1761188950259,-2135.54,0.00020113,2]
[392127878,1761188950279,-2135.54,0.00021071,2]
[392127879,1761188950299,-300.0,0.00022028,2]
[392127880,1761188950319,-2135.54,0.00022029,2]
[392127881,1761188950338,-300.0,0.00022986,2]
[392127882,1761188950359,-610.940761,0.00022987,2]
[392127883,1761188955113,-1524.599239,0.00022987,2]
[392127884,1761188955133,-160.0,0.00023936,2]
[392127885,1761188955156,-2135.54,0.00023944,2]
[392127886,1761188955179,-2135.54,0.00024902,2]
[392127887,1761188955201,-386.0,0.00024953,2]
[392127888,1761188955221,-1012.77485524,0.00025526,2]
[392127889,1761188955260,-250.0,0.00025526,2]
[392127890,1761188955280,-305.16529687,0.00025526,30]
[392127891,1761188955301,-549.94166668,0.00025526,2]
[392127892,1761188955322,-2135.54,0.0002586,2]
[392127893,1761188955342,-2135.54,0.00026818,2]
[392127894,1761188955365,-1200.0,0.00027447,2]
[392127895,1761188955385,-300.0,0.00027448,120]
[392127896,1761188955410,-300.0,0.00027448,120]
[392127897,1761188955430,-300.0,0.00027448,120]
[392127898,1761188955449,-416.67699195,0.00027448,120]
[392127899,1761188955470,-2135.54,0.00027776,2]
[392127900,1761188955490,-151.93086821,0.00027854,2]
[392127901,1761188955509,-300.0,0.00028079,120]
[392127902,1761188955532,-2725.599102,0.00028718,2]
[392127903,1761188955552,-1193.60344467,0.00028733,2]
[392127904,1761188963129,-941.93655533,0.00028733,2]
[392127905,1761188963159,-166.66,0.00028863,30]
[392127906,1761188963181,-166.66,0.0002947,30]
[392127907,1761188963204,-500.0,0.00029573,2]
[392127908,1761188963223,-500.0,0.00029573,2]
[392127909,1761188963242,-149.58374364,0.00029573,2]
[392127910,1761188973114,-170.89517369,0.00029573,2]
[392127911,1761188973134,-1439.0,0.0002966,2]
[392127912,1761188973154,-476.0,0.00029691,2]
[392127913,1761188973175,-2135.54,0.00029691,2]
[392127914,1761188973194,-500.0,0.00029944,2]
[392127915,1761188973214,-166.66,0.00030078,30]
[392127916,1761188973403,-1600.0,0.00030266,2]
[392127917,1761188973424,-151.93086821,0.00030282,2]
[392127918,1761188973443,-300.0,0.00030361,2]
[392127919,1761188973464,-151.0,0.00030364,2]
[392127920,1761188973483,-151.0,0.00030364,2]
[392127921,1761188973503,-151.0,0.00030364,2]
[392127922,1761188973522,-151.0,0.00030364,2]
[392127923,1761188973541,-151.0,0.00030364,2]
[392127924,1761188973561,-151.0,0.00030364,2]
[392127925,1761188973579,-151.0,0.00030364,2]
[392127926,1761188973604,-151.0,0.00030364,2]
[392127927,1761188973630,-151.0,0.00030364,2]
[392127928,1761188973650,-151.0,0.00030364,2]
[392127929,1761188973670,-151.0,0.00030364,2]
[392127930,1761188973693,-151.0,0.00030364,2]
[392127931,1761188973714,-151.0,0.00030364,2]
[392127932,1761188973734,-151.0,0.00030364,2]
[392127933,1761188973753,-151.0,0.00030364,2]
[392127934,1761188973773,-151.0,0.00030364,2]
[392127935,1761188973793,-151.0,0.00030364,2]
[392127936,1761188973814,-151.0,0.00030364,2]
[392127937,1761188973834,-151.0,0.00030364,2]
[392127938,1761188973855,-151.0,0.00030364,2]
[392127939,1761188973879,-252.53,0.00030364,7]
[392127940,1761188973902,-500.0,0.00030379,2]
[392127941,1761188973926,-500.0,0.00030379,2]
[392127942,1761188973949,-500.0,0.00030379,2]
[392127943,1761188973971,-348.38124312,0.00030379,2]
[392127956,1761189031929,-151.0,0.00030364,2]
[392127957,1761189031939,-1600.0,0.00030378,2]
[392127958,1761189031957,-151.61875688,0.00030379,2]
[392127959,1761189031969,-500.0,0.00030379,2]
[392127960,1761189031980,-500.0,0.00030379,2]
[392127961,1761189031992,-500.0,0.00030379,2]
[392127962,1761189032003,-500.0,0.00030379,2]
[392127963,1761189032012,-500.0,0.00030379,2]
[392127964,1761189032024,-500.0,0.00030379,2]
[392127965,1761189032034,-500.0,0.00030379,2]
[392127966,1761189032044,-500.0,0.00030379,2]
[392127967,1761189032054,-500.0,0.00030379,2]
[392127968,1761189032064,-500.0,0.00030379,2]
[392127969,1761189032074,-500.0,0.00030379,2]
[392127970,1761189032083,-412.24683181,0.00030379,2]
[392127971,1761189032094,-300.0,0.0003038,120]
[392127972,1761189032104,-753.563,0.0003038,26]
[392127973,1761189032114,-300.0,0.00030381,120]
[392127974,1761189032123,-300.0,0.00030381,120]
[392127975,1761189032132,-300.0,0.00030381,120]
[392127976,1761189032142,-5331.93965367,0.00030381,2]
[392127977,1761189032151,-5000.0,0.00030382,2]
[392127978,1761189032161,-11541.34,0.00030382,2]
[392127979,1761189032171,-1000.0,0.00030382,2]
[392127980,1761189032181,-200.0,0.00030382,2]
[392127981,1761189032191,-610.0,0.00030382,2]
[392127982,1761189032201,-484.03,0.00030382,120]
[392127983,1761189032211,-1464.7,0.00030382,2]
[392127984,1761189032221,-160.98,0.0003062,2]
[392127985,1761189032232,-150.99,0.0003062,2]
[392127986,1761189032243,-9999.99,0.0003062,2]
[392127988,1761189032252,-2135.54,0.00030649,2]
[392127990,1761189032262,-166.66,0.00030686,30]
[392127992,1761189032271,-500.0,0.0003075,5]
[392127993,1761189032281,-349.58,0.0003093,2]
[392127994,1761189032290,-166.66,0.00031293,30]
[392127996,1761189032301,-1000.0,0.00031298,5]
[392127998,1761189032314,-1910.72919268,0.00031607,2]
[392128000,1761189032651,-224.81080732,0.00031607,2]
[392128001,1761189032661,-705.85673185,0.00031607,2]
[392128002,1761189032673,-150.0,0.00031708,2]
[392128003,1761189032683,-150.0,0.00031717,2]
[392128004,1761189032693,-166.66,0.00031901,30]
[392128005,1761189032703,-438.7766164,0.00032565,2]
[392128006,1761189032714,-819.78286601,0.00032565,2]
[392128007,1761189032726,-876.98051759,0.00032565,2]
[392128008,1761189032735,-241.0,0.00032866,3]
[392128009,1761189032746,-134.03290801,0.00033029,2]
[392128010,1761189032762,-342.19865331,0.00033029,2]
[392128011,1761189032772,-570.18947147,0.00033417,120]
[392128012,1761189032782,-300.0,0.00033417,120]
[392128013,1761189032792,-1528.77656005,0.00033522,2]
[392128014,1761189037785,-294.75802627,0.00030381,2]
[392128050,1761189039922,-205.24197373,0.00030381,2]
[392128051,1761189039933,-379.13853687,0.00030381,2]
[392128052,1761189039944,-215.6194894,0.00033522,2]
[392128053,1761189039957,-391.14395055,0.00033522,2]
[392128054,1761189039969,-484.03,0.0003418,120]
[392128055,1761189039981,-2135.54,0.0003448,2]
[392128056,1761189039992,-349.58,0.00034506,2]
[392128057,1761189040001,-648.15311912,0.00034572,4]
[392128058,1761189040012,-266.82098443,0.00034609,2]
[392128059,1761189040022,-251.50288642,0.000348,120]
[392128060,1761189040031,-2135.54,0.00035438,2]
[392128061,1761189040040,-2774.5655154,0.00035827,30]
[392128062,1761189040050,-500.0,0.00036062,30]
[392128063,1761189040059,-2135.54,0.00036396,2]
[392128064,1761189040068,-454.1,0.00036784,2]
[392128065,1761189040078,-328.44444922,0.00037003,30]
[392128066,1761189040087,-250.0,0.00037295,2]
[392128067,1761189040097,-420.63,0.00037408,2]
[392128068,1761189040106,-666.0,0.00037684,3]
[392128069,1761189040115,-500.0,0.00037713,30]
[392128070,1761189040124,-484.03,0.00037977,120]
[392128071,1761189040133,-500.0,0.00037986,30]
[392128072,1761189040142,-349.58,0.00038082,2]
[392128073,1761189040151,-500.0,0.00038323,30]
[392128074,1761189040160,-152.0,0.00038687,3]
[392128075,1761189040170,-588.9859,0.00038888,30]
[392128076,1761189040179,-503.02,0.00038927,2]
[392128077,1761189040188,-150.0,0.00039664,2]
[392128078,1761189040197,-290.45951046,0.00039726,15]
[392128079,1761189040207,-500.0,0.0004007,30]
[392128080,1761189040216,-1000.0,0.000405,2]
[392128081,1761189040226,-152.0,0.00040875,4]
[392128082,1761189040236,-500.0,0.00041096,30]
[392128083,1761189040246,-168.0,0.00041123,2]
[392128085,1761189040256,-500.0,0.00041644,30]
[392128086,1761189040266,-349.58,0.00041658,7]
[392128087,1761189040276,-484.03,0.00041775,120]
[392128088,1761189040286,-150.0,0.00041985,30]
[392128089,1761189040296,-500.0,0.00042076,30]
[392128091,1761189040305,-257.18242993,0.00042177,2]
[392128093,1761189040314,-500.0,0.00042192,30]
[392128095,1761189040324,-2332.327,0.00042236,2]
[392128097,1761189040334,-903.0,0.00042236,2]
[392128099,1761189040343,-267.46074303,0.00042274,2]
[392128101,1761189040352,-1464.7,0.00042535,2]
[392128103,1761189040362,-1700.0,0.000426,2]
[392128105,1761189040371,-500.0,0.0004274,30]
[392128107,1761189040380,-168.0,0.00042828,2]
[392128108,1761189040389,-168.0,0.00042987,2]
[392128109,1761189040400,-253.0,0.00043,90]
[392128110,1761189040409,-253.0,0.00043014,90]
[392128111,1761189040419,-152.0,0.00043062,5]
[392128112,1761189040428,-803.42800826,0.00043117,2]
[392128113,1761189040437,-500.0,0.00043288,30]
[392128114,1761189040446,-803.42800826,0.0004335,2]
[392128115,1761189040455,-168.0,0.0004353,2]
[392128116,1761189040465,-1000.0,0.00043579,30]
[392128117,1761189040475,-1000.0,0.00043579,30]
[392128118,1761189040484,-2000.0,0.00043621,120]
[392128119,1761189040494,-666.0,0.0004365,30]
[392128120,1761189040503,-646.29,0.00043689,2]
[392128121,1761189040513,-695.0,0.00043689,2]
[392128122,1761189040522,-1317.405,0.00043689,2]
[392128123,1761189040532,-544.773,0.00043689,2]
[392128124,1761189040541,-803.42800826,0.00043755,2]
[392128125,1761189040550,-814.04870835,0.00043757,30]
[392128126,1761189040560,-207.6370637,0.00043785,60]
[392128127,1761189040571,-150.0,0.00043832,31]
[392128128,1761189040582,-500.0,0.00043836,30]
[392128129,1761189040592,-162.02870698,0.00043887,31]
[392128130,1761189040604,-803.42800826,0.00044007,2]
[392128131,1761189040615,-666.0,0.000441,30]
[392128132,1761189040624,-692.97244972,0.000442,2]
[392128133,1761189040637,-307.02755028,0.000442,2]
[392128134,1761189040647,-536.27404372,0.00044247,30]
[392128135,1761189040655,-803.42800826,0.00044316,2]
[392128136,1761189040665,-912.09259362,0.00044356,30]
[392128137,1761189041022,-1.6e-07,0.00044356,30]
[392128138,1761189041034,-173.63740622,0.00044356,30]
[392128139,1761189041044,-500.0,0.00044384,30]
[392128140,1761189041054,-491.30802708,0.0004443,2]
[392128141,1761189041066,-312.11998118,0.0004443,2]
[392128142,1761189041076,-773.02801882,0.0004445,15]
[392128143,1761189041087,-5203.61702779,0.0004445,15]
[392128144,1761189041096,-630.438758,0.000445,120]
[392128145,1761189041106,-5976.64504658,0.000445,15]
[392128146,1761189041116,-807.42073473,0.00044533,30]
[392128147,1761189041126,-500.0,0.00044549,120]
[392128148,1761189041135,-252.78026114,0.00044549,120]
[392128149,1761189041144,-329.23746824,0.00044549,120]
[392128150,1761189041154,-500.0,0.00044549,120]
[392128151,1761189041164,-307.10594078,0.00044549,120]
[392128152,1761189041173,-1651.0,0.0004455,7]
[392128153,1761189041183,-31700.28822314,0.0004455,2]
[392128154,1761189041194,-666.0,0.0004455,30]
[392128155,1761189041204,-5976.64504658,0.0004455,15]
[392128156,1761189041214,-5976.64504658,0.000446,15]
[392128157,1761189041223,-5976.64504658,0.0004465,15]
[392128158,1761189041233,-5976.64504658,0.000447,15]
[392128159,1761189041242,-803.42800829,0.00044705,2]
[392128160,1761189041252,-5976.64504658,0.0004475,15]
[392128161,1761189041262,-500.0,0.00044772,120]
[392128162,1761189041271,-500.0,0.00044772,120]
[392128163,1761189041281,-500.0,0.00044772,120]
[392128164,1761189041291,-500.0,0.00044772,120]
[392128165,1761189041300,-500.0,0.00044772,120]
[392128166,1761189041310,-537.0,0.00044772,120]
[392128167,1761189041319,-500.0,0.00044772,120]
[392128168,1761189041329,-500.0,0.00044772,120]
[392128169,1761189041338,-500.0,0.00044772,120]
[392128170,1761189041349,-500.0,0.00044772,120]
[392128171,1761189041358,-500.0,0.00044772,120]
[392128172,1761189041368,-500.0,0.00044772,120]
[392128173,1761189041378,-500.0,0.00044772,120]
[392128174,1761189041388,-500.0,0.00044772,120]
[392128175,1761189041397,-500.0,0.00044772,120]
[392128176,1761189041407,-500.0,0.00044772,120]
[392128177,1761189041416,-500.0,0.00044772,120]
[392128178,1761189041426,-500.0,0.00044772,120]
[392128179,1761189041437,-500.0,0.00044772,120]
[392128180,1761189041447,-500.0,0.00044772,120]
[392128181,1761189041458,-500.0,0.00044772,120]
[392128182,1761189041469,-500.0,0.00044772,120]
[392128183,1761189041479,-500.0,0.00044772,120]
[392128184,1761189041488,-500.0,0.00044772,120]
[392128185,1761189041498,-523.0,0.00044772,120]
[392128186,1761189041508,-2009.3284,0.00044775,3]
[392128187,1761189041518,-846.11843044,0.00044777,15]
[392128188,1761189041527,-1000.0,0.00044782,14]
[392128189,1761189041537,-846.11843043,0.00044791,15]
[392128190,1761189041546,-5976.64504658,0.000448,15]
[392128191,1761189041556,-179.52944529,0.000448,28]
[392128192,1761189041566,-846.11843043,0.00044804,15]
[392128193,1761189041575,-846.11843043,0.00044818,15]
[392128194,1761189041585,-1231.56264,0.0004482,25]
[392128195,1761189041594,-846.11843043,0.00044832,15]
[392128196,1761189041603,-500.0,0.00044835,30]
[392128197,1761189041614,-846.11843043,0.00044845,15]
[392128198,1761189041624,-5976.64504658,0.0004485,15]
[392128199,1761189041634,-846.11843043,0.00044859,15]
[392128200,1761189041643,-5000.0,0.00044864,120]
[392128201,1761189041652,-179.52944528,0.0004487,28]
[392128202,1761189041662,-636.05311234,0.0004487,120]
[392128203,1761189041672,-291.21221558,0.0004487,2]
[392128204,1761189041681,-500.0,0.0004487,120]
[392128205,1761189041690,-500.0,0.0004487,120]
[392128206,1761189041700,-500.0,0.0004487,120]
[392128207,1761189041711,-500.0,0.0004487,120]
[392128208,1761189041720,-257.65,0.0004487,120]
[392128209,1761189041729,-500.0,0.0004487,120]
[392128210,1761189041739,-500.0,0.00044871,120]
[392128211,1761189041754,-360.92490956,0.00044871,120]
[392128212,1761189041763,-514.46260514,0.00044871,120]
[392128213,1761189041773,-500.0,0.00044871,120]
[392128214,1761189041782,-528.78299758,0.00044871,120]
[392128215,1761189041792,-524.67250567,0.00044872,30]
[392128216,1761189041801,-500.0,0.00044872,120]
[392128217,1761189041811,-511.33861294,0.00044872,120]
[392128218,1761189041820,-341.89431985,0.00044872,120]
[392128219,1761189041830,-362.54807483,0.00044872,120]
[392128220,1761189041840,-500.0,0.00044872,120]
[392128221,1761189041850,-285.58869584,0.00044872,120]
[392128222,1761189041859,-507.81422809,0.00044872,120]
[392128223,1761189041870,-500.0,0.00044872,7]
[392128224,1761189041879,-531.70998207,0.00044872,120]
[392128225,1761189041888,-500.0,0.00044872,120]
[392128226,1761189041898,-505.43372094,0.00044872,120]
[392128227,1761189041907,-500.0,0.00044872,120]
[392128228,1761189041916,-628.3682761,0.00044872,120]
[392128229,1761189041927,-500.0,0.00044872,120]
[392128230,1761189041936,-505.04707078,0.00044872,2]
[392128231,1761189041945,-502.66991092,0.00044872,30]
[392128232,1761189041955,-500.0,0.00044872,30]
[392128233,1761189041967,-500.0,0.00044872,120]
[392128234,1761189041976,-500.0,0.00044872,120]
[392128235,1761189041986,-299.24830609,0.00044872,120]
[392128236,1761189041996,-502.35119999,0.00044872,120]
[392128237,1761189042006,-500.0,0.00044872,60]
[392128238,1761189042017,-500.0,0.00044872,120]
[392128239,1761189042027,-500.0,0.00044872,120]
[392128240,1761189042036,-500.0,0.00044872,120]
[392128241,1761189042047,-500.0,0.00044872,120]
[392128242,1761189042057,-233.53419467,0.00044872,120]
[392128243,1761189042066,-500.0,0.00044872,120]
[392128244,1761189042075,-547.92641398,0.00044872,120]
[392128245,1761189042084,-500.0,0.00044872,120]
[392128246,1761189042093,-500.0,0.00044872,120]
[392128247,1761189042102,-500.0,0.00044872,120]
[392128248,1761189042111,-500.0,0.00044872,120]
[392128249,1761189042122,-500.0,0.00044872,120]
[392128250,1761189042131,-510.07956934,0.00044872,120]
[392128251,1761189042140,-500.0,0.00044872,120]
[392128252,1761189042151,-500.0,0.00044872,120]
[392128253,1761189042160,-500.0,0.00044872,120]
[392128254,1761189042169,-446.91449853,0.00044872,120]
[392128255,1761189042178,-500.0,0.00044872,120]
[392128256,1761189042188,-505.54941185,0.00044872,120]
[392128257,1761189042197,-500.0,0.00044872,30]
[392128258,1761189042208,-500.0,0.00044872,120]
[392128259,1761189042217,-512.26131567,0.00044872,120]
[392128260,1761189042227,-503.47326976,0.00044872,120]
[392128261,1761189042236,-500.0,0.00044872,120]
[392128262,1761189042246,-500.0,0.00044872,120]
[392128263,1761189042255,-500.0,0.00044872,120]
[392128264,1761189042264,-500.0,0.00044872,120]
[392128265,1761189042274,-500.0,0.00044872,120]
[392128266,1761189042283,-500.0,0.00044872,120]
[392128267,1761189042292,-500.0,0.00044872,120]
[392128268,1761189042302,-500.0,0.00044872,120]
[392128269,1761189042311,-211.97858887,0.00044872,120]
[392128270,1761189042321,-500.0,0.00044872,120]
[392128271,1761189042330,-600.29999602,0.00044872,120]
[392128272,1761189042339,-500.0,0.00044872,120]
[392128273,1761189042349,-500.0,0.00044872,120]
[392128274,1761189042358,-500.0,0.00044872,120]
[392128275,1761189042367,-500.0,0.00044872,120]
[392128276,1761189042377,-500.0,0.00044872,120]
[392128277,1761189042386,-500.0,0.00044872,120]
[392128278,1761189042395,-546.84,0.00044872,120]
[392128279,1761189042405,-503.08910375,0.00044872,120]
[392128280,1761189042414,-500.0,0.00044872,120]
[392128281,1761189042423,-174.96184022,0.00044872,120]
[392128282,1761189042432,-500.0,0.00044872,120]
[392128283,1761189042442,-500.0,0.00044872,12]
[392128284,1761189042452,-532.62,0.00044872,120]
[392128285,1761189042462,-608.76149122,0.00044872,120]
[392128286,1761189042471,-500.0,0.00044872,120]
[392128287,1761189042480,-186.23337483,0.00044872,120]
[392128288,1761189042489,-644.66,0.00044872,120]
[392128289,1761189042498,-502.2882025,0.00044872,120]
[392128290,1761189042507,-500.0,0.00044872,120]
[392128291,1761189042516,-300.0,0.00044872,120]
[392128292,1761189042525,-500.0,0.00044872,120]
[392128293,1761189042533,-508.78169519,0.00044872,120]
[392128294,1761189042543,-500.0,0.00044872,120]
[392128295,1761189042552,-500.0,0.00044872,120]
[392128296,1761189042672,-500.0,0.00044872,120]
[392128297,1761189042683,-500.0,0.00044872,120]
[392128298,1761189042692,-510.81827519,0.00044872,120]
[392128299,1761189042702,-500.0,0.00044872,120]
[392128300,1761189042711,-500.0,0.00044872,120]
[392128301,1761189042721,-500.0,0.00044872,120]
[392128302,1761189042731,-500.0,0.00044872,120]
[392128303,1761189042741,-500.0,0.00044872,120]
[392128304,1761189042751,-500.0,0.00044872,120]
[392128305,1761189042762,-500.0,0.00044872,120]
[392128306,1761189042774,-846.11843043,0.00044873,15]
[392128307,1761189042788,-162.77487531,0.00044873,15]
[392128308,1761189042802,-1591.84294262,0.00044873,17]
[392128309,1761189042812,-253.0,0.00044877,90]
[392128310,1761189042823,-846.11843043,0.00044886,15]
[392128311,1761189042832,-161.66013364,0.000449,20]
[392128312,1761189042843,-280.37912772,0.000449,17]
[392128313,1761189042853,-81029.2943,0.000449,60]
[392128314,1761189042862,-846.11843043,0.000449,15]
[392128315,1761189042871,-5976.64504658,0.000449,15]
[392128316,1761189042880,-544.9661596,0.000449,2]
[392128317,1761189042890,-166.39702937,0.000449,2]
[392128318,1761189042900,-593.32105009,0.00044918,14]
[392128319,1761189042910,-521.17,0.00044932,30]
[392128320,1761189042919,-193.92097797,0.00044938,2]
[392128321,1761189042928,-179.52944528,0.00044939,28]
[392128322,1761189042939,-503.05556562,0.00044954,2]
[392128323,1761189042949,-1000.0,0.00044955,14]
[392128324,1761189042958,-7861.9275137,0.00044964,2]
[392128325,1761189042973,-85761.4094223,0.00044964,2]
[392128326,1761189042984,-267.36432857,0.00044973,10]
[392128327,1761189042994,-501.04614214,0.00044973,10]
[392128328,1761189043005,-501.87968708,0.00044973,10]
[392128329,1761189043017,-500.0,0.00044973,10]
[392128330,1761189043026,-501.55652216,0.00044973,10]
[392128331,1761189043036,-317.14697686,0.00044973,10]
[392128332,1761189043046,-500.0,0.00044973,10]
[392128333,1761189043057,-500.0,0.00044973,10]
[392128334,1761189043066,-500.0,0.00044973,10]
[392128335,1761189043075,-500.0,0.00044973,2]
[392128336,1761189043086,-373.37772484,0.00044973,10]
[392128337,1761189043097,-529.59492403,0.00044973,3]
[392128338,1761189043108,-495.31281765,0.00044973,10]
[392128339,1761189043118,-396.97427192,0.0004498,120]
[392128340,1761189043187,-3286.59263468,0.0004498,120]
[392128341,1761189043199,-280.37912768,0.00044983,18]
[392128342,1761189043209,-445.0,0.00044986,120]
[392128343,1761189043219,-152.01921295,0.00044988,14]
[392128344,1761189043228,-500.0,0.00044989,120]
[392128345,1761189043240,-500.0,0.00044989,120]
[392128346,1761189043255,-45035.9225201,0.0004499,3]
[392128347,1761189043264,-150.59,0.0004499,2]
[392128348,1761189043274,-150.59,0.0004499,2]
[392128349,1761189043283,-500.0,0.00044998,60]
[392128350,1761189043292,-500.0,0.00044998,120]
[392128351,1761189043301,-456.16939693,0.00044998,120]
[392128352,1761189043311,-500.0,0.00044998,120]
[392128353,1761189043320,-500.0,0.00044998,120]
[392128354,1761189043329,-317.38663786,0.00044998,120]
[392128355,1761189043338,-500.0,0.00044998,120]
[392128356,1761189043347,-500.0,0.00044998,120]
[392128357,1761189043356,-394.94136789,0.00044998,120]
[392128358,1761189043365,-260.83121149,0.00044998,120]
[392128359,1761189043375,-500.0,0.00044998,120]
[392128360,1761189043384,-500.0,0.00044998,120]
[392128361,1761189043393,-518.14079981,0.00044998,120]
[392128362,1761189043403,-518.89752891,0.00044998,120]
[392128363,1761189043412,-504.41963626,0.00044998,120]
[392128365,1761189043421,-504.24400961,0.00044998,120]
[392128366,1761189043431,-504.85340483,0.00044998,120]
[392128367,1761189043440,-500.0,0.00044998,120]
[392128368,1761189043451,-502.4541412,0.00044998,120]
[392128369,1761189043460,-500.0,0.00044998,12]
[392128370,1761189043470,-511.03319825,0.00044998,120]
[392128371,1761189043479,-300.0,0.00044999,30]
[392128372,1761189043488,-200.0,0.00044999,120]
[392128373,1761189043497,-201.26694162,0.00044999,120]
[392128374,1761189043506,-200.0,0.00044999,120]
[392128375,1761189043516,-289.89738536,0.00044999,120]
[392128376,1761189043525,-201.53321539,0.00044999,120]
[392128377,1761189043534,-500.0,0.00044999,120]
[392128378,1761189043544,-211.32997443,0.00044999,120]
[392128379,1761189043553,-322.55,0.00044999,12]
[392128380,1761189043563,-500.0,0.00044999,120]
[392128381,1761189043572,-500.0,0.00044999,120]
[392128382,1761189043581,-500.0,0.00044999,120]
[392128383,1761189043590,-300.34,0.00044999,120]
[392128384,1761189043599,-1000.0,0.00044999,120]
[392128385,1761189043608,-1000.0,0.00044999,120]
[392128386,1761189043618,-1000.0,0.00044999,120]
[392128387,1761189043627,-322.6107,0.00044999,120]
[392128388,1761189043637,-1000.0,0.00044999,120]
[392128389,1761189043646,-1000.0,0.00044999,120]
[392128390,1761189043656,-1000.0,0.00044999,120]
[392128391,1761189043665,-1000.0,0.00044999,120]
[392128392,1761189043674,-1000.0,0.00044999,120]
[392128393,1761189043684,-500.0,0.00044999,120]
[392128394,1761189043693,-500.0,0.00044999,120]
[392128395,1761189043703,-1000.0,0.00044999,120]
[392128396,1761189043713,-500.0,0.00044999,120]
[392128397,1761189043722,-1000.0,0.00044999,120]
[392128398,1761189043731,-500.0,0.00044999,120]
[392128399,1761189043740,-1000.0,0.00044999,120]
[392128400,1761189043750,-500.0,0.00044999,120]
[392128401,1761189043759,-500.0,0.00044999,120]
[392128402,1761189043768,-500.0,0.00044999,120]
[392128403,1761189043777,-500.0,0.00044999,120]
[392128404,1761189043787,-1000.0,0.00044999,120]
[392128405,1761189043796,-1000.0,0.00044999,120]
[392128406,1761189043805,-1000.0,0.00044999,120]
[392128407,1761189043815,-1000.0,0.00044999,120]
[392128408,1761189043823,-1000.0,0.00044999,120]
[392128409,1761189043832,-1000.0,0.00044999,120]
[392128410,1761189043841,-1000.0,0.00044999,120]